bitfinex-derivatives/quotes_ETHF0:USTF0_20260316
["timestamp","ask_amount","ask_price","bid_price","bid_amount"]
[1773701204693,6.37465583,2367.7,2366.5,5.8470776]
[1773701205095,6.37465583,2367.5,2366.5,5.8470776]
[1773701205598,6.37465583,2367.5,2366.5,5.85150217]
[1773701206004,6.37465583,2367.3,2366.5,0.00442457]
[1773701206699,6.37465583,2367.3,2366.5,6.02157051]
[1773701208202,6.37465583,2367.3,2366.5,0.00442457]
[1773701209800,6.37465583,2367.1,2366.2,6.01714594]
[1773701210006,6.37465583,2366.9,2366.2,6.01714594]
[1773701210705,6.37465583,2366.9,2366.2,6.02108924]
[1773701215606,6.07966424,2367.1,2366.2,6.02108924]
[1773701219907,6.07966424,2367.1,2366.3,0.21128]
[1773701220212,5.91009283,2367.7,2366.4,6.3735346]
[1773701220413,5.91009283,2367.5,2366.4,6.3735346]
[1773701228816,5.91009283,2367.8,2366.8,6.3735346]
[1773701234924,5.91009283,2368.1,2366.8,6.3735346]
[1773701235116,11.84456026,2368.0,2366.8,6.3735346]
[1773701235317,5.91009283,2368.0,2366.8,6.3735346]
[1773701238723,6.12155815,2368.2,2366.8,6.3735346]
[1773701238930,5.91009283,2368.0,2367.0,6.3735346]
[1773701239725,5.91009283,2368.0,2367.2,6.3735346]
[1773701247633,5.91009283,2368.0,2367.3,5.83312431]
[1773701249934,6.37136784,2368.6,2367.8,5.83312431]
[1773701250135,6.37136784,2368.6,2367.9,5.83312431]
[1773701250936,6.37437107,2368.6,2367.9,5.83814725]
[1773701251131,11.46400797,2369.6,2367.9,5.83814725]
[1773701251132,6.37136784,2369.0,2368.1,5.83312431]
[1773701251331,6.37136784,2369.0,2368.3,5.83312431]
[1773701251533,6.37136784,2369.5,2368.5,5.83312431]
[1773701251834,6.37136784,2369.5,2368.7,5.83312431]
[1773701252034,6.37590187,2369.5,2368.6,14.47812431]
[1773701252227,6.37590187,2369.5,2368.7,5.83312431]
[1773701253237,6.37590187,2369.5,2368.6,8.645]
[1773701253438,6.37590187,2369.5,2368.4,6.04422431]
[1773701253634,6.37590187,2369.5,2368.4,5.83312431]
[1773701254137,6.37590187,2369.5,2368.5,5.83312431]
[1773701254931,6.37136784,2369.3,2368.0,5.83312431]
[1773701255339,6.37136784,2369.1,2368.0,5.83312431]
[1773701259135,6.37136784,2369.1,2368.2,5.83312431]
[1773701259736,6.37136784,2369.1,2368.4,5.83312431]
[1773701261938,6.37136784,2369.3,2368.6,5.83312431]
[1773701264644,6.37136784,2369.3,2368.5,6.04421431]
[1773701265038,6.37136784,2369.3,2368.3,5.83312431]
[1773701268544,6.37136784,2369.3,2368.5,5.83312431]
[1773701274350,6.37136784,2369.3,2368.7,5.77511035]
[1773701276552,6.20408595,2369.5,2368.7,5.77511035]
[1773701276749,6.19955192,2369.3,2368.7,5.77511035]
[1773701277751,6.20408595,2369.5,2368.8,5.93823458]
[1773701279156,12.12694076,2369.4,2368.8,5.93823458]
[1773701279356,6.19955192,2369.4,2368.8,5.93823458]
[1773701280556,6.19955192,2369.4,2368.8,0.21106]
[1773701280754,0.00453403,2369.5,2368.3,1.42538431]
[1773701280755,6.19955192,2369.1,2368.4,5.72717458]
[1773701287153,6.19955192,2368.9,2368.4,5.72717458]
[1773701288264,6.19955192,2369.4,2368.6,5.72717458]
[1773701288464,5.93565424,2369.3,2368.6,5.72717458]
[1773701288675,6.19955192,2369.1,2368.4,5.72717458]
[1773701288867,6.19955192,2368.9,2368.1,5.72717458]
[1773701289664,6.19955192,2368.5,2367.9,0.00502294]
[1773701289861,6.19955192,2368.5,2368.0,5.72717458]
[1773701290061,6.19955192,2368.7,2368.0,5.72717458]
[1773701294069,6.19955192,2369.0,2368.0,5.72717458]
[1773701294370,6.19955192,2368.8,2368.0,5.72717458]
[1773701298373,6.19955192,2369.0,2368.2,5.72717458]
[1773701298670,6.19955192,2368.8,2368.2,5.72717458]
[1773701302174,6.19955192,2368.8,2368.4,5.72717458]
[1773701303271,6.19955192,2368.8,2368.3,0.21111]
[1773701303467,6.19955192,2368.8,2368.3,5.91528051]
[1773701307572,6.19955192,2368.8,2368.3,5.70417051]
[1773701307778,6.19955192,2368.8,2368.0,5.70417051]
[1773701309682,5.78427367,2368.6,2368.0,5.70417051]
[1773701310479,5.78427367,2368.6,2367.9,0.00502294]
[1773701310683,5.78427367,2368.3,2367.4,5.70417051]
[1773701311574,5.78427367,2368.3,2367.5,5.70417051]
[1773701315084,5.78427367,2368.3,2366.2,5.70417051]
[1773701315284,11.44338431,2368.6,2366.1,8.45215]
[1773701315285,5.78427367,2367.8,2366.9,5.70417051]
[1773701315790,5.78427367,2367.8,2367.1,5.70417051]
[1773701316087,5.78427367,2367.8,2367.1,5.7090198]
[1773701316290,5.78779532,2367.8,2367.1,5.7090198]
[1773701316685,7.21317963,2367.8,2367.1,0.00484929]
[1773701316990,5.78779532,2367.8,2367.1,5.7090198]
[1773701320085,7.21317963,2367.8,2367.1,5.7090198]
[1773701320491,5.78779532,2367.8,2367.1,5.7090198]
[1773701324791,0.00352165,2367.8,2367.1,5.7090198]
[1773701324998,5.78427367,2367.9,2367.1,5.7090198]
[1773701326100,5.78845117,2367.9,2367.1,5.7090198]
[1773701333109,0.0041775,2367.9,2367.1,5.7090198]
[1773701333598,6.0011409,2367.9,2367.1,5.7090198]
[1773701334808,0.0041775,2367.9,2367.1,5.7090198]
[1773701335110,6.0011409,2367.9,2367.1,5.7090198]
[1773701335314,0.00327458,2367.9,2367.1,5.7090198]
[1773701335509,0.00327458,2367.9,2367.3,6.08829967]
[1773701337810,5.89175504,2368.6,2367.5,5.71066443]
[1773701338014,5.89175504,2368.4,2367.5,5.71066443]
[1773701338717,5.89654192,2368.4,2367.5,5.71066443]
[1773701340410,0.00478688,2368.4,2367.7,5.71066443]
[1773701340820,5.89654192,2368.4,2367.7,5.71066443]
[1773701341019,5.89654192,2368.4,2367.5,5.71066443]
[1773701341517,5.89654192,2368.4,2367.1,5.71551372]
[1773701341822,5.89175504,2368.1,2367.1,0.00484929]
[1773701342017,5.89175504,2367.9,2367.1,5.71551372]
[1773701347421,6.12468876,2367.8,2367.1,0.00484929]
[1773701347626,5.89175504,2367.7,2366.9,5.71066443]
[1773701347828,5.89175504,2367.7,2366.7,5.71066443]
[1773701348625,5.89175504,2367.7,2366.7,5.71406512]
[1773701349128,5.89175504,2367.7,2366.7,0.00340069]
[1773701349430,5.89175504,2367.5,2366.3,5.71066443]
[1773701349626,5.89175504,2367.3,2366.3,5.71066443]
[1773701350428,5.89175504,2367.3,2366.3,5.71555019]
[1773701353029,5.89175504,2367.1,2366.3,5.71555019]
[1773701357329,5.89175504,2367.4,2366.5,5.71066443]
[1773701357831,6.10092965,2367.4,2366.5,5.71066443]
[1773701358031,5.89175504,2367.2,2366.5,5.71066443]
[1773701359232,5.89175504,2367.2,2366.3,5.71555019]
[1773701363039,5.85969888,2367.5,2366.5,5.85147312]
[1773701363335,5.85969888,2367.5,2366.7,5.85147312]
[1773701365236,5.85969888,2367.9,2367.1,5.85147312]
[1773701365536,5.85969888,2368.1,2367.3,5.85147312]
[1773701366434,5.85969888,2368.1,2367.4,0.21119]
[1773701366734,5.85969888,2368.1,2367.5,5.85147312]
[1773701368234,0.00478688,2368.4,2366.3,6.06763888]
[1773701368235,5.85969888,2367.9,2366.3,6.06763888]
[1773701368535,5.85969888,2367.7,2366.3,6.06763888]
[1773701368734,5.85969888,2367.5,2366.3,6.06763888]
[1773701371244,5.85969888,2367.3,2366.3,6.06763888]
[1773701376137,5.85969888,2367.6,2366.3,6.06763888]
[1773701376340,5.85969888,2367.6,2366.8,5.85147312]
[1773701377044,5.85969888,2368.1,2366.8,5.85147312]
[1773701377243,5.85969888,2367.9,2366.8,5.85147312]
[1773701382350,5.85969888,2367.9,2367.0,5.85147312]
[1773701384952,5.85969888,2367.9,2366.9,6.06270312]
[1773701385143,5.85969888,2367.9,2366.9,5.85147312]
[1773701386751,5.85969888,2367.7,2366.9,5.85147312]
[1773701388152,5.85969888,2367.7,2366.5,5.85147312]
[1773701388747,5.85969888,2367.5,2366.5,5.85147312]
[1773701390654,5.85969888,2367.3,2366.3,5.85635888]
[1773701395956,6.07211386,2367.3,2366.3,5.85635888]
[1773701396955,5.84212796,2367.1,2366.3,5.85635888]
[1773701400460,5.84212796,2366.9,2365.5,6.1131338]
[1773701400657,5.84212796,2366.7,2365.7,6.1131338]
[1773701401362,5.84724981,2366.7,2365.7,6.11852408]
[1773701402059,5.84724981,2366.7,2365.9,6.1131338]
[1773701402060,0.00512185,2366.7,2365.9,6.1131338]
[1773701404464,5.30839177,2367.7,2365.7,0.00539028]
[1773701404465,6.05454294,2367.3,2366.1,6.1131338]
[1773701405264,6.0576665,2367.3,2366.1,6.1131338]
[1773701405462,6.0576665,2367.3,2366.3,6.1131338]
[1773701408363,5.84212796,2367.1,2365.9,6.1131338]
[1773701408856,5.84212796,2366.8,2365.9,6.1131338]
[1773701409164,5.84212796,2366.5,2365.9,6.1131338]
[1773701409666,5.84212796,2366.7,2365.9,6.1131338]
[1773701415368,5.84212796,2366.5,2365.9,6.1131338]
[1773701416168,5.84212796,2366.5,2365.8,6.1131338]
[1773701417070,5.84212796,2366.5,2365.8,6.1180999]
[1773701419067,5.84212796,2366.7,2365.8,6.1180999]
[1773701426376,5.84212796,2366.7,2365.8,7.54685295]
[1773701427778,5.84212796,2366.7,2365.8,6.1180999]
[1773701430974,5.96154211,2366.5,2365.8,0.0049661]
[1773701431877,5.96154211,2366.5,2365.8,6.15091673]
[1773701432978,5.96154211,2366.5,2365.8,0.0049661]
[1773701435579,5.96154211,2366.3,2365.8,0.0049661]
[1773701435784,5.96154211,2365.9,2365.1,6.14595063]
[1773701436588,5.96154211,2366.3,2365.3,6.14595063]
[1773701436786,5.96154211,2366.1,2365.3,6.15057392]
[1773701437283,5.96154211,2365.9,2365.3,0.00462329]
[1773701439982,5.96154211,2365.9,2365.0,6.14595063]
[1773701440580,5.96154211,2365.7,2365.0,6.14595063]
[1773701440981,5.96154211,2365.7,2365.0,6.15010785]
[1773701441184,5.96154211,2365.5,2365.0,0.00415722]
[1773701441382,5.96568951,2365.5,2365.0,6.15010785]
[1773701442882,5.96568951,2365.5,2365.0,0.00415722]
[1773701443384,5.96568951,2365.5,2365.0,6.15010785]
[1773701444088,5.96568951,2365.5,2365.0,0.00415722]
[1773701444787,5.96568951,2365.5,2365.0,6.15010785]
[1773701447381,5.96568951,2365.5,2365.0,0.00415722]
[1773701447586,5.96568951,2365.5,2365.0,6.15010785]
[1773701448183,5.96568951,2365.5,2365.0,0.00415722]
[1773701449287,5.96568951,2365.5,2364.0,6.14595063]
[1773701449488,5.96154211,2365.3,2364.0,6.14595063]
[1773701450089,5.96154211,2365.3,2364.1,6.14595063]
[1773701450391,5.96154211,2365.3,2364.1,6.1499541]
[1773701453795,7.39169905,2365.3,2364.1,6.1499541]
[1773701454195,6.06941718,2365.1,2364.1,6.1499541]
[1773701455795,6.06941718,2364.2,2362.9,0.21158]
[1773701455992,6.06941718,2364.2,2363.0,6.23862582]
[1773701456691,6.06941718,2364.2,2363.0,6.24184255]
[1773701457196,6.06941718,2364.2,2363.1,5.92251114]
[1773701458298,5.68264097,2363.9,2363.0,0.00321673]
[1773701459795,5.68264097,2363.9,2363.0,5.92572787]
[1773701465302,5.68264097,2363.9,2363.0,0.00321673]
[1773701465899,5.68264097,2363.9,2363.0,5.92572787]
[1773701466113,5.89646134,2363.9,2363.0,5.92572787]
[1773701468401,5.89646134,2363.9,2363.0,0.00321673]
[1773701469001,5.89646134,2363.9,2362.7,5.92251114]
[1773701469206,5.89646134,2363.9,2362.4,5.92251114]
[1773701469393,5.68264097,2363.7,2362.4,5.92251114]
[1773701470102,5.68641248,2363.7,2362.4,5.92592075]
[1773701477205,0.00377151,2363.7,2362.6,5.92251114]
[1773701477414,5.68641248,2363.7,2362.6,5.92251114]
[1773701485008,5.68641248,2363.7,2362.8,6.10056671]
[1773701486211,5.74732141,2363.5,2362.8,6.10056671]
[1773701487107,3.49215496,2364.1,2363.0,6.10056671]
[1773701487108,5.74732141,2364.0,2363.0,6.10056671]
[1773701487313,5.74732141,2363.8,2363.1,6.10056671]
[1773701488008,3.49215496,2364.3,2363.1,6.10056671]
[1773701488209,5.74732141,2364.1,2363.1,6.10056671]
[1773701488414,5.74732141,2363.9,2363.1,6.10056671]
[1773701489619,5.74732141,2363.9,2363.2,6.10056671]
[1773701492016,5.74732141,2363.9,2363.3,6.10056671]
[1773701493213,5.74732141,2363.9,2363.0,6.10056671]
[1773701493419,5.74732141,2363.9,2362.7,6.10056671]
[1773701493718,5.74732141,2363.7,2362.7,6.10056671]
[1773701494040,5.74732141,2363.7,2362.8,6.10056671]
[1773701494210,5.74732141,2363.5,2362.8,6.10056671]
[1773701497127,5.74732141,2363.8,2362.8,6.10056671]
[1773701497623,5.74732141,2363.8,2362.8,6.31215671]
[1773701497824,6.18516194,2363.7,2362.5,6.31218671]
[1773701498023,5.74732141,2363.6,2362.5,6.31218671]
[1773701498326,5.74732141,2363.6,2362.7,6.10056671]
[1773701498625,5.74732141,2363.6,2362.8,6.10056671]
[1773701501227,5.74732141,2363.6,2362.9,6.10056671]
[1773701504222,5.74732141,2363.6,2361.0,13.2232993]
[1773701504223,3.49215496,2363.1,2361.3,6.10056671]
[1773701504423,5.74732141,2362.8,2361.3,6.10056671]
[1773701504629,5.74732141,2362.6,2361.3,6.10056671]
[1773701504829,5.74732141,2362.4,2361.3,6.10056671]
[1773701505027,5.74732141,2362.4,2361.5,6.10056671]
[1773701505224,5.75037896,2362.4,2361.5,6.10566971]
[1773701505930,5.75037896,2362.4,2361.6,6.10056671]
[1773701509034,5.74732141,2363.2,2361.8,6.10056671]
[1773701509333,5.74732141,2363.8,2362.0,6.10056671]
[1773701509534,5.74732141,2363.8,2362.2,6.10056671]
[1773701509535,5.95988168,2363.8,2362.2,6.10056671]
[1773701509930,5.96529038,2363.8,2362.2,6.10056671]
[1773701510130,5.96529038,2363.8,2362.1,8.684]
[1773701510131,5.96529038,2363.8,2362.4,6.10056671]
[1773701510732,5.96529038,2363.8,2362.6,6.10056671]
[1773701512229,5.74732141,2364.2,2363.0,6.10056671]
[1773701512434,5.74732141,2364.2,2363.2,6.10056671]
[1773701513338,5.75177132,2364.2,2363.2,6.1056938]
[1773701515837,5.75177132,2364.2,2363.4,5.60930763]
[1773701516144,0.00444991,2364.2,2363.4,5.60930763]
[1773701516844,5.66000737,2364.2,2363.6,5.75691226]
[1773701517642,5.66000737,2364.2,2363.5,14.45391226]
[1773701517842,0.00444991,2364.2,2363.6,5.75691226]
[1773701518144,5.66000737,2364.2,2363.6,5.75691226]
[1773701518544,0.00444991,2364.2,2363.6,5.75691226]
[1773701520444,5.66000737,2364.2,2363.4,5.75691226]
[1773701523544,5.66000737,2364.2,2363.2,0.00512709]
[1773701523944,5.66000737,2364.2,2363.2,5.76203935]
[1773701526551,0.00444991,2364.2,2363.2,5.97359935]
[1773701526751,5.65555746,2365.2,2363.9,5.75691226]
[1773701527054,5.65555746,2365.9,2364.6,5.75691226]
[1773701527253,5.65555746,2365.9,2364.8,5.75691226]
[1773701527752,5.66007851,2365.9,2364.6,5.75691226]
[1773701529949,5.66007851,2365.9,2364.4,5.75691226]
[1773701530157,5.65555746,2365.7,2364.4,5.75691226]
[1773701530455,5.65555746,2365.6,2363.9,5.75691226]
[1773701530652,5.65555746,2365.2,2363.7,5.75691226]
[1773701530958,5.65555746,2364.8,2363.3,5.75691226]
[1773701533558,5.65555746,2364.6,2363.2,5.76203935]
[1773701533855,5.65555746,2364.4,2363.2,5.76203935]
[1773701534755,5.65555746,2364.4,2363.3,5.75691226]
[1773701539355,5.65555746,2364.6,2363.5,5.75691226]
[1773701542763,5.65555746,2364.6,2363.7,6.10466563]
[1773701543362,5.78482219,2364.8,2363.9,6.10466563]
[1773701543559,5.78482219,2364.8,2364.1,6.10466563]
[1773701544662,5.78482219,2364.8,2363.9,6.10466563]
[1773701547663,5.78482219,2364.8,2363.7,6.10466563]
[1773701547865,5.78482219,2364.6,2363.7,6.10466563]
[1773701549856,5.78482219,2364.6,2363.5,6.10466563]
[1773701550061,5.78482219,2364.4,2363.5,6.10466563]
[1773701552864,5.78482219,2364.2,2363.5,6.10466563]
[1773701553065,5.78482219,2364.6,2363.7,6.10466563]
[1773701553266,5.78482219,2364.6,2363.8,6.10466563]
[1773701554163,0.00308272,2364.6,2364.0,6.10466563]
[1773701554373,5.78482219,2365.0,2364.0,6.10466563]
[1773701554556,6.35732573,2364.9,2364.0,6.10466563]
[1773701554767,12.14214792,2364.9,2364.0,6.10466563]
[1773701555068,5.78482219,2364.9,2364.0,6.10466563]
[1773701555266,5.78972054,2364.9,2364.0,6.10466563]
[1773701557566,5.78972054,2364.9,2363.2,10.4749907]
[1773701557567,5.78482219,2364.6,2363.5,6.10466563]
[1773701557763,5.78482219,2364.4,2363.5,6.10466563]
[1773701558367,5.78482219,2364.2,2363.5,6.10466563]
[1773701558572,5.78482219,2364.6,2363.5,6.10466563]
[1773701558868,12.15018703,2364.5,2363.5,6.10466563]
[1773701559058,5.78482219,2364.5,2363.5,6.10466563]
[1773701560368,5.78482219,2364.7,2363.7,6.10466563]
[1773701560562,5.78482219,2364.5,2363.7,6.10466563]
[1773701561269,5.78482219,2364.5,2363.8,6.10466563]
[1773701565774,5.78482219,2364.5,2363.8,14.83866563]
[1773701565974,5.78482219,2364.5,2363.9,6.10466563]
[1773701567075,5.78482219,2364.5,2363.2,0.00512709]
[1773701567076,5.78482219,2364.5,2363.5,14.83966563]
[1773701567270,5.78482219,2364.5,2363.6,6.10466563]
[1773701568078,5.78482219,2364.5,2363.6,14.83966563]
[1773701568280,5.78482219,2364.3,2363.6,6.10466563]
[1773701568472,5.78482219,2364.3,2363.5,8.736]
[1773701568977,5.78482219,2364.1,2363.4,6.10466563]
[1773701571174,5.78482219,2364.4,2363.4,6.10466563]
[1773701571476,5.78482219,2364.2,2363.4,6.10466563]
[1773701571875,5.78482219,2364.4,2363.6,6.10466563]
[1773701577884,5.53500362,2364.8,2363.6,6.10466563]
[1773701578078,5.53500362,2364.6,2363.6,6.10466563]
[1773701581889,5.53500362,2364.8,2364.0,5.83573535]
[1773701582292,5.53500362,2364.8,2364.1,5.83573535]
[1773701584594,5.53500362,2364.8,2364.0,5.83573535]
[1773701585090,5.53500362,2364.8,2363.4,0.21154]
[1773701585295,5.53500362,2364.6,2363.6,5.83573535]
[1773701585492,5.53500362,2364.6,2363.8,5.83573535]
[1773701586997,6.36391351,2364.5,2363.8,5.83573535]
[1773701587199,5.53500362,2364.4,2363.8,5.83573535]
[1773701590203,5.53500362,2364.4,2363.4,0.21154]
[1773701590204,5.53500362,2364.4,2363.5,5.83573535]
[1773701591698,5.53500362,2364.2,2363.5,5.83573535]
[1773701592401,5.53500362,2364.2,2363.3,5.83573535]
[1773701592603,5.53500362,2364.2,2363.3,14.54773535]
[1773701592905,5.53500362,2364.2,2363.4,5.83573535]
[1773701593499,5.53500362,2364.0,2363.4,5.83573535]
[1773701597408,5.53500362,2364.0,2363.4,14.56173535]
[1773701597608,5.53500362,2364.0,2363.5,5.83573535]
[1773701599112,5.53500362,2364.0,2363.4,8.73]
[1773701599602,5.53500362,2364.0,2363.3,14.56673535]
[1773701600211,5.53500362,2364.0,2363.4,5.83573535]
[1773701601698,5.53500362,2364.0,2363.3,5.83573535]
[1773701601908,5.53500362,2364.0,2363.2,5.84086244]
[1773701602308,5.53500362,2364.0,2363.2,14.57886244]
[1773701602609,5.53500362,2364.0,2363.3,5.9216268]
[1773701604500,5.6073519,2363.8,2362.5,5.9216268]
[1773701604699,5.6073519,2363.6,2362.6,5.9216268]
[1773701605206,5.6073519,2363.6,2362.8,5.9216268]
[1773701605605,5.6073519,2363.6,2362.8,14.67086711]
[1773701606406,5.6073519,2363.6,2362.8,5.92686711]
[1773701606909,5.6073519,2363.6,2362.8,0.00524031]
[1773701608007,5.6073519,2363.9,2362.9,5.9216268]
[1773701608308,5.6073519,2363.7,2362.9,5.9216268]
[1773701611106,5.6073519,2363.7,2362.8,0.00524031]
[1773701612207,5.6073519,2363.7,2362.8,5.92686711]
[1773701613813,5.6073519,2363.7,2362.4,5.9216268]
[1773701614011,5.6073519,2363.5,2362.4,5.9216268]
[1773701614612,5.6073519,2363.3,2362.4,5.9216268]
[1773701614813,5.6073519,2363.3,2362.4,5.9265102]
[1773701621524,5.6073519,2363.1,2362.4,0.0048834]
[1773701621724,5.6127377,2363.1,2362.4,0.0048834]
[1773701622330,5.6127377,2363.1,2362.4,5.9265102]
[1773701625028,5.6127377,2363.1,2362.4,0.0048834]
[1773701625430,5.6127377,2363.1,2362.5,5.9216268]
[1773701627329,5.81962695,2363.1,2362.5,5.9216268]
[1773701631134,0.0053858,2363.1,2362.5,5.9216268]
[1773701634540,6.4653386,2363.1,2362.5,5.9216268]
[1773701634736,0.0053858,2363.1,2362.5,5.9216268]
[1773701635639,6.46997137,2363.1,2362.5,5.9216268]
[1773701635840,13.71159059,2363.1,2362.5,5.9216268]
[1773701636042,7.24700502,2363.1,2362.5,5.9216268]
[1773701636841,6.46772071,2363.0,2362.5,5.9216268]
[1773701637040,5.64335166,2363.0,2362.5,5.9216268]
[1773701637940,0.0053858,2363.1,2362.5,5.9216268]
[1773701638141,5.64873746,2363.1,2362.5,5.9216268]
[1773701639043,0.0053858,2363.1,2362.5,5.9216268]
[1773701639238,0.0053858,2363.1,2361.9,5.51390575]
[1773701639239,7.07640366,2362.8,2361.9,5.51390575]
[1773701639545,6.47659761,2362.7,2361.9,5.51390575]
[1773701639842,5.64335166,2362.8,2362.1,5.51390575]
[1773701640337,6.48094812,2362.7,2362.1,5.5172054]
[1773701640640,5.64335166,2362.9,2362.1,5.5172054]
[1773701640840,6.48126844,2362.8,2362.1,5.5172054]
[1773701641041,12.1246201,2362.8,2362.1,5.5172054]
[1773701641244,7.07640366,2362.8,2362.1,5.5172054]
[1773701642342,7.07640366,2362.8,2361.6,1.433052]
[1773701642343,7.07640366,2362.2,2361.6,5.51390575]
[1773701642539,1.433052,2362.6,2361.6,5.51390575]
[1773701642746,5.64335166,2362.3,2361.6,5.51390575]
[1773701643240,5.64335166,2362.3,2361.6,5.518013]
[1773701648340,1.64677511,2362.4,2361.6,0.00410725]
[1773701648341,5.64335166,2362.1,2361.6,0.00410725]
[1773701648541,5.64335166,2362.1,2361.6,5.518013]
[1773701649544,5.64335166,2362.1,2361.6,4.10105523]
[1773701650444,5.64335166,2362.1,2361.2,3.61365001]
[1773701650644,5.64335166,2362.1,2361.6,0.0051203]
[1773701650841,5.64335166,2362.3,2361.6,3.6385278]
[1773701655845,5.64335166,2362.0,2361.6,3.6385278]
[1773701656247,5.64335166,2362.0,2361.6,0.0051203]
[1773701656438,5.64335166,2362.0,2361.4,3.66442655]
[1773701657347,5.64335166,2362.0,2361.4,3.66851029]
[1773701657745,5.64335166,2362.2,2361.6,3.65376698]
[1773701658844,5.64335166,2362.0,2361.4,0.00408374]
[1773701659049,7.07640366,2361.5,2361.0,3.85294121]
[1773701659348,5.64335166,2361.8,2361.0,3.85294121]
[1773701659944,5.64335166,2361.8,2361.0,3.85679967]
[1773701664351,5.80257879,2361.6,2361.0,3.64504967]
[1773701667346,0.21421287,2362.0,2361.0,3.64504967]
[1773701667347,5.80257879,2361.4,2361.0,0.00385846]
[1773701667653,5.80635844,2361.4,2361.0,0.00385846]
[1773701671158,5.80635844,2361.4,2361.0,0.11049846]
[1773701671353,5.80635844,2361.4,2361.0,0.11027846]
[1773701671659,5.80635844,2361.4,2361.0,0.00385846]
[1773701672067,5.80257879,2361.2,2360.6,3.53828592]
[1773701673056,0.00377965,2361.4,2360.8,3.50443953]
[1773701673258,5.80635844,2361.4,2360.9,0.21177]
[1773701673466,5.80635844,2361.4,2360.7,12.26643953]
[1773701673666,5.80635844,2361.4,2360.8,3.50434613]
[1773701676173,5.80635844,2361.4,2360.8,3.61035613]
[1773701676466,5.80635844,2361.4,2360.8,3.50434613]
[1773701677271,5.80257879,2361.2,2360.6,0.00471579]
[1773701677758,5.80257879,2361.2,2360.6,3.49692122]
[1773701678667,5.80257879,2361.2,2360.6,3.60296122]
[1773701678868,5.80257879,2361.2,2360.6,3.49692122]
[1773701679059,5.80257879,2361.2,2360.6,12.25892122]
[1773701679558,5.80257879,2361.2,2360.7,3.4496011]
[1773701680267,5.80257879,2361.2,2360.6,12.20683564]
[1773701680465,5.80257879,2361.3,2360.7,3.43911985]
[1773701680665,5.80257879,2361.3,2360.7,3.54528985]
[1773701680867,5.80257879,2361.3,2360.7,3.43911985]
[1773701681065,5.80257879,2361.3,2360.6,3.43173466]
[1773701681266,5.80257879,2361.3,2360.7,3.42701887]
[1773701682475,5.80257879,2361.3,2360.6,8.76971579]
[1773701682476,7.23563079,2361.3,2360.6,8.76971579]
[1773701682974,7.23563079,2361.3,2360.6,12.06070598]
[1773701683475,5.80257879,2361.0,2360.6,0.00471579]
[1773701684270,5.80257879,2361.2,2360.6,3.26484013]
[1773701685776,5.80635844,2361.4,2360.8,3.26190551]
[1773701687380,5.80635844,2361.4,2360.6,0.00471579]
[1773701687576,5.80635844,2361.4,2360.7,8.771]
[1773701687775,1.433052,2361.1,2360.6,0.00471579]
[1773701687976,5.80257879,2360.8,2360.1,3.24789848]
[1773701688179,5.80257879,2360.8,2360.1,12.01989848]
[1773701688880,5.80257879,2360.8,2360.1,3.24789848]
[1773701689083,5.80257879,2360.8,2360.2,8.773]
[1773701689477,5.80257879,2360.8,2360.1,3.24946413]
[1773701689673,5.80257879,2360.8,2360.1,0.0051401]
[1773701690077,7.07886106,2360.8,2359.6,3.12866813]
[1773701690276,5.80257879,2360.6,2359.5,11.90266813]
[1773701691083,5.80257879,2360.6,2359.6,3.09116686]
[1773701691278,5.80257879,2360.6,2358.1,3.09438769]
[1773701691279,5.80257879,2359.7,2358.1,3.09438769]
[1773701691481,5.80257879,2359.4,2358.1,3.09438769]
[1773701691683,5.80257879,2359.2,2358.2,4.41145296]
[1773701691877,5.80257879,2359.2,2358.1,11.86938769]
[1773701692384,5.80647555,2359.2,2358.1,11.87269611]
[1773701692573,5.80647555,2359.2,2358.1,3.09769611]
[1773701695283,5.80647555,2359.2,2358.1,3.32062659]
[1773701696175,5.80647555,2359.2,2358.3,3.26391705]
[1773701697789,5.80647555,2359.2,2358.5,2.88094229]
[1773701698679,5.80647555,2359.2,2358.2,8.78]
[1773701698680,0.00389676,2359.2,2358.7,2.88241138]
[1773701698883,5.30839177,2360.8,2358.6,0.21197]
[1773701698884,5.26807358,2359.9,2358.9,2.88241138]
[1773701699093,5.26807358,2359.9,2359.0,11.65915725]
[1773701699384,5.26807358,2359.9,2359.0,2.87815725]
[1773701699583,5.26807358,2359.9,2358.8,3.09082596]
[1773701699784,5.27128772,2359.9,2358.9,2.87886596]
[1773701702288,5.27128772,2359.9,2359.1,2.89225055]
[1773701702581,0.00321414,2359.9,2359.3,2.87761193]
[1773701702784,5.26807358,2360.1,2359.5,2.87761193]
[1773701702989,5.26807358,2361.0,2359.5,2.87761193]
[1773701703190,5.26807358,2361.0,2359.7,3.59822997]
[1773701703683,5.27144992,2361.0,2359.7,3.59822997]
[1773701704386,5.27144992,2361.0,2359.0,0.21193]
[1773701704585,5.27144992,2361.0,2359.2,3.5963494]
[1773701704790,5.27144992,2361.0,2359.3,3.58285218]
[1773701706492,6.45166851,2360.9,2359.3,3.58285218]
[1773701706692,5.26807358,2360.8,2359.3,3.58285218]
[1773701707695,5.26807358,2360.8,2359.5,3.61458604]
[1773701708289,5.26807358,2360.8,2359.0,3.61128033]
[1773701708498,5.26807358,2360.8,2359.2,3.61128033]
[1773701708688,5.26807358,2360.8,2359.3,3.61890048]
[1773701709697,5.26807358,2360.6,2358.9,3.60547519]
[1773701709896,5.26807358,2360.4,2358.7,3.39037852]
[1773701710096,5.26807358,2360.2,2358.7,3.39037852]
[1773701710698,5.26807358,2360.0,2358.7,3.39037852]
[1773701711997,5.26807358,2360.0,2358.7,3.60233852]
[1773701713695,5.26807358,2360.0,2358.9,3.40282941]
[1773701713895,5.47728994,2360.0,2358.9,3.40282941]
[1773701715500,5.47728994,2360.0,2358.7,3.42915862]
[1773701715696,5.47728994,2360.0,2358.5,3.22276609]
[1773701716003,5.26807358,2359.8,2358.5,3.22276609]
[1773701716400,5.26807358,2359.8,2358.3,3.20423904]
[1773701716601,5.26807358,2359.6,2358.3,3.20423904]
[1773701717803,5.26807358,2359.6,2358.5,3.11036611]
[1773701718905,5.26807358,2359.4,2358.5,3.11036611]
[1773701720402,5.26807358,2359.4,2356.9,7.417]
[1773701720403,5.26807358,2359.4,2356.1,9.72385716]
[1773701720705,5.26807358,2358.4,2356.6,3.02591755]
[1773701720901,5.30839177,2358.9,2356.8,3.00838171]
[1773701720902,5.26807358,2358.2,2356.8,3.00838171]
[1773701721103,5.26807358,2358.2,2357.0,3.00838171]
[1773701721304,5.26807358,2358.2,2357.2,3.00838171]
[1773701721500,5.27209549,2358.2,2357.2,3.01156377]
[1773701721700,5.27209549,2358.2,2357.2,0.00318206]
[1773701721899,5.27209549,2358.2,2356.4,2.56131377]
[1773701722103,5.26807358,2358.0,2356.4,2.56131377]
[1773701722304,5.26807358,2357.8,2356.5,2.56131377]
[1773701722805,5.26807358,2357.8,2356.5,11.06631377]
[1773701723000,5.26807358,2357.8,2356.5,11.05784105]
[1773701723406,5.26807358,2357.8,2356.5,0.00352728]
[1773701724404,5.53206664,2357.6,2356.5,0.00352728]
[1773701725507,5.53206664,2357.6,2356.5,2.66384021]
[1773701726406,5.53206664,2357.6,2356.6,10.86189574]
[1773701726605,5.53206664,2357.6,2356.7,2.64449258]